fUSD/lending_fUSD_20240606
["ID","MTS","AMOUNT","RATE_DAILY","PERIOD"]
[328640392,1717659034026,-1500.0,0.00013777,2]
[328640393,1717659034035,-1500.0,0.00013778,2]
[328640394,1717659034045,-150.0,0.00013778,2]
[328640395,1717659034054,-150.0,0.00013779,2]
[328640396,1717659034063,-1500.0,0.00013781,2]
[328640397,1717659034073,-150.0,0.00013782,2]
[328640398,1717659034082,-150.0,0.00013782,2]
[328640399,1717659034091,-150.0,0.00013785,2]
[328640400,1717659034102,-150.0,0.00013785,2]
[328640401,1717659034111,-300.0,0.00013786,2]
[328640402,1717659034121,-1500.0,0.00013787,2]
[328640403,1717659034130,-150.0,0.00013792,2]
[328640404,1717659034140,-1500.0,0.00013793,2]
[328640405,1717659034150,-1500.0,0.00013794,2]
[328640406,1717659034159,-300.0,0.00013795,2]
[328640407,1717659034168,-150.0,0.00013796,2]
[328640408,1717659034178,-150.0,0.00013797,2]
[328640409,1717659034187,-150.0,0.00013799,2]
[328640410,1717659034196,-382.37501768,0.00013799,2]
[328640411,1717659034205,-150.0,0.000138,2]
[328640412,1717659034214,-150.0,0.00013801,2]
[328640413,1717659034224,-151.23831742,0.00013802,2]
[328640414,1717659034233,-150.0,0.00013802,2]
[328640415,1717659034243,-150.0,0.00013802,2]
[328640416,1717659034252,-1500.0,0.00013803,2]
[328640417,1717659034261,-150.0,0.00013803,2]
[328640418,1717659034271,-1500.0,0.00013807,2]
[328640419,1717659034280,-150.0,0.00013808,2]
[328640420,1717659034290,-150.0,0.00013812,2]
[328640421,1717659034299,-470.37461345,0.00013814,2]
[328640422,1717659034309,-150.0,0.00013817,2]
[328640423,1717659034318,-150.0,0.00013822,2]
[328640424,1717659034327,-1531.30863037,0.00013824,2]
[328640425,1717659034336,-150.0,0.00013824,2]
[328640426,1717659034345,-150.0,0.00013826,2]
[328640427,1717659034354,-1500.0,0.00013826,2]
[328640428,1717659034363,-150.0,0.00013827,2]
[328640429,1717659034373,-1500.0,0.00013828,2]
[328640430,1717659034382,-1643.47903913,0.00013832,2]
[328640431,1717659034391,-150.0,0.00013833,2]
[328640432,1717659034400,-1500.0,0.00013836,2]
[328640433,1717659034409,-150.0,0.00013838,2]
[328640434,1717659034419,-150.0,0.00013838,2]
[328640435,1717659034428,-150.0,0.0001384,2]
[328640436,1717659034438,-1500.0,0.00013842,2]
[328640437,1717659034448,-1500.0,0.00013843,2]
[328640438,1717659034457,-150.0,0.00013845,2]
[328640439,1717659034469,-1500.0,0.00013847,2]
[328640440,1717659034479,-150.0,0.00013848,2]
[328640441,1717659034490,-150.0,0.00013848,2]
[328640442,1717659034502,-1500.0,0.00013848,2]
[328640443,1717659034510,-150.0,0.00013849,2]
[328640444,1717659034520,-300.0,0.0001385,2]
[328640445,1717659034530,-150.0,0.00013851,2]
[328640446,1717659034540,-151.17361003,0.00013852,2]
[328640447,1717659034550,-1500.0,0.00013852,2]
[328640448,1717659034560,-300.0,0.00013854,2]
[328640449,1717659034569,-150.0,0.00013856,2]
[328640450,1717659034579,-155.93527899,0.00013856,2]
[328640451,1717659034588,-150.0,0.00013858,2]
[328640452,1717659034597,-150.0,0.00013859,2]
[328640453,1717659034606,-320.89773,0.0001386,2]
[328640454,1717659034617,-150.0,0.00013863,2]
[328640455,1717659034627,-1500.0,0.00013864,2]
[328640456,1717659034637,-150.0,0.00013864,2]
[328640457,1717659034646,-150.0,0.00013864,2]
[328640458,1717659034656,-150.0,0.00013866,2]
[328640459,1717659034667,-150.0,0.00013867,2]
[328640460,1717659034677,-150.0,0.0001387,2]
[328640461,1717659034687,-150.0,0.0001387,2]
[328640462,1717659034697,-1500.0,0.0001387,2]
[328640463,1717659034706,-150.0,0.00013871,2]
[328640464,1717659034717,-150.0,0.00013871,2]
[328640465,1717659034726,-150.0,0.00013871,2]
[328640466,1717659034737,-150.0,0.00013873,2]
[328640467,1717659034747,-150.0,0.00013874,2]
[328640468,1717659034757,-150.0,0.00013877,2]
[328640469,1717659034770,-150.0,0.00013879,2]
[328640470,1717659034779,-157.79667942,0.0001388,2]
[328640471,1717659034788,-150.0,0.00013882,2]
[328640472,1717659034798,-150.0,0.00013883,2]
[328640473,1717659034807,-150.0,0.00013885,2]
[328640474,1717659034817,-150.0,0.00013885,2]
[328640475,1717659034826,-150.0,0.00013885,2]
[328640476,1717659034836,-500.0,0.00013887,2]
[328640477,1717659034846,-150.0,0.00013887,2]
[328640478,1717659034856,-1500.0,0.00013887,2]
[328640479,1717659034865,-500.0,0.00013888,2]
[328640480,1717659034874,-500.0,0.00013888,2]
[328640481,1717659034884,-500.0,0.00013888,2]
[328640482,1717659034893,-200.0,0.00013888,2]
[328640483,1717659034902,-300.0,0.00013888,2]
[328640484,1717659034912,-150.0,0.0001389,2]
[328640485,1717659034921,-150.0,0.0001389,2]
[328640486,1717659034931,-1500.0,0.0001389,2]
[328640487,1717659034940,-150.0,0.0001389,2]
[328640488,1717659034950,-1500.0,0.00013891,2]
[328640489,1717659034959,-150.0,0.00013896,2]
[328640490,1717659034969,-150.0,0.00013897,2]
[328640491,1717659034978,-300.0,0.00013899,2]
[328640492,1717659034988,-15351.021554,0.000139,2]
[328640493,1717659034998,-155.5699,0.000139,2]
[328640494,1717659035007,-1000.0,0.000139,2]
[328640495,1717659035016,-5829.4704,0.000139,2]
[328640496,1717659035026,-1933.5625,0.000139,2]
[328640497,1717659035034,-684.0,0.000139,2]
[328640498,1717659035044,-172.93807591,0.000139,2]
[328640499,1717659035053,-844.56940814,0.000139,2]
[328640500,1717659035063,-1500.0,0.00013902,2]
[328640501,1717659035072,-150.0,0.00013902,2]
[328640502,1717659035082,-150.0,0.00013904,2]
[328640503,1717659035092,-150.0,0.00013909,2]
[328640504,1717659035102,-150.0,0.00013911,2]
[328640505,1717659035111,-1500.0,0.00013911,2]
[328640506,1717659035120,-150.0,0.00013911,2]
[328640507,1717659035130,-150.0,0.00013913,2]
[328640508,1717659035139,-470.37461345,0.00013914,2]
[328640509,1717659035148,-300.0,0.00013914,2]
[328640510,1717659035158,-1500.0,0.00013915,2]
[328640511,1717659035167,-150.0,0.00013915,2]
[328640512,1717659035176,-1500.0,0.00013916,2]
[328640513,1717659035186,-300.0,0.00013916,2]
[328640514,1717659035195,-1500.0,0.00013916,2]
[328640515,1717659035204,-150.0,0.00013917,2]
[328640516,1717659035214,-150.0,0.00013922,2]
[328640517,1717659035223,-1500.0,0.00013923,2]
[328640518,1717659035232,-150.0,0.00013923,2]
[328640519,1717659035242,-150.0,0.00013927,2]
[328640520,1717659035252,-150.0,0.00013928,2]
[328640521,1717659035261,-1500.0,0.00013928,2]
[328640522,1717659035270,-255.10506307,0.0001393,2]
[328640523,1717659035279,-1500.0,0.0001393,2]
[328640524,1717659035288,-430.4114,0.0001393,2]
[328640525,1717659035297,-300.0,0.00013932,2]
[328640526,1717659035306,-150.0,0.00013932,2]
[328640527,1717659035315,-1500.0,0.00013933,2]
[328640528,1717659035324,-1500.0,0.00013934,2]
[328640529,1717659035333,-300.0,0.00013934,2]
[328640530,1717659035342,-1500.0,0.00013935,2]
[328640531,1717659035351,-1500.0,0.00013935,2]
[328640532,1717659035361,-150.0,0.00013936,2]
[328640533,1717659035370,-150.0,0.00013937,2]
[328640534,1717659035379,-1500.0,0.00013937,2]
[328640535,1717659035388,-1500.0,0.00013937,2]
[328640536,1717659035397,-150.0,0.00013937,2]
[328640537,1717659035406,-150.0,0.0001394,2]
[328640538,1717659035415,-300.0,0.00013943,2]
[328640539,1717659035424,-150.0,0.00013945,2]
[328640540,1717659035433,-150.0,0.00013945,2]
[328640541,1717659035443,-150.0,0.0001395,2]
[328640542,1717659035452,-150.0,0.0001395,2]
[328640543,1717659035461,-150.0,0.00013951,2]
[328640544,1717659035470,-150.0,0.00013952,2]
[328640545,1717659035482,-1500.0,0.00013952,2]
[328640546,1717659035493,-150.0,0.00013952,2]
[328640547,1717659035504,-411.86496791,0.00013952,2]
[328640548,1717659035514,-150.0,0.00013957,2]
[328640549,1717659035523,-150.0,0.00013959,2]
[328640550,1717659035536,-150.0,0.00013959,2]
[328640551,1717659035546,-150.0,0.00013961,2]
[328640552,1717659035555,-150.0,0.00013964,2]
[328640553,1717659035567,-150.0,0.00013965,2]
[328640554,1717659035578,-150.0,0.00013967,2]
[328640555,1717659035588,-150.0,0.00013967,2]
[328640556,1717659035599,-300.0,0.00013971,2]
[328640557,1717659035610,-590.56118115,0.00013972,2]
[328640558,1717659035619,-150.0,0.00013972,2]
[328640559,1717659035629,-150.0,0.00013973,2]
[328640560,1717659035639,-1500.0,0.00013974,2]
[328640561,1717659035648,-150.0,0.00013974,2]
[328640562,1717659035658,-541.28362223,0.00013974,2]
[328640563,1717659035669,-150.0,0.00013979,2]
[328640564,1717659035679,-1500.0,0.00013981,2]
[328640565,1717659035688,-522.71179611,0.00013985,2]
[328640566,1717659035698,-150.0,0.00013985,2]
[328640567,1717659035707,-1500.0,0.00013988,2]
[328640568,1717659035716,-2418.9562472,0.0001399,2]
[328640569,1717659035726,-157.41658145,0.0001399,2]
[328640570,1717659035735,-300.0,0.0001399,2]
[328640571,1717659035744,-154.09,0.0001399,2]
[328640572,1717659035757,-1500.0,0.00013991,2]
[328640573,1717659035768,-1500.0,0.00013994,2]
[328640574,1717659035778,-156.79354221,0.00013996,2]
[328640575,1717659035787,-209.28297821,0.00013996,2]
[328640576,1717659035796,-156.60003234,0.00013996,2]
[328640577,1717659035807,-307.79170352,0.00013996,2]
[328640578,1717659035816,-269.47512701,0.00013996,2]
[328640579,1717659035825,-2371.0294493,0.00013996,2]
[328640580,1717659035835,-155.53038523,0.00013996,2]
[328640581,1717659035846,-2012.83631027,0.00013996,2]
[328640582,1717659035856,-301.85980496,0.00013996,2]
[328640583,1717659035866,-155.0,0.00013996,2]
[328640584,1717659035875,-202.41999235,0.00013996,2]
[328640585,1717659035885,-344.53463632,0.00013996,2]
[328640586,1717659035895,-155.0,0.00013996,2]
[328640587,1717659035904,-234.83520174,0.00013996,2]
[328640588,1717659035913,-282.59682608,0.00013996,2]
[328640589,1717659035923,-1369.14148522,0.00013996,2]
[328640590,1717659035932,-155.0,0.00013996,2]
[328640591,1717659035942,-150.0,0.00013996,2]
[328640592,1717659035951,-290.55514573,0.00013997,2]
[328640593,1717659035961,-361.22735375,0.00013997,2]
[328640594,1717659035970,-155.14741106,0.00013997,2]
[328640595,1717659035979,-481.53748878,0.00013997,2]
[328640596,1717659035988,-1217.60094334,0.00013997,2]
[328640597,1717659035998,-166.43094977,0.00013998,2]
[328640598,1717659036007,-1260.44934067,0.00013998,2]
[328640599,1717659036016,-325.41430204,0.00013998,2]
[328640600,1717659036026,-205.45032417,0.00013998,2]
[328640601,1717659036035,-537.23750335,0.00013998,2]
[328640602,1717659036045,-4287.57858381,0.00013998,2]
[328640603,1717659036054,-494.05371952,0.00013998,2]
[328640604,1717659036063,-156.53474472,0.00013998,2]
[328640605,1717659036072,-155.0,0.00013998,2]
[328640606,1717659036082,-307.1268398,0.00013998,2]
[328640607,1717659036091,-251.99972606,0.00013998,2]
[328640608,1717659036100,-155.35241619,0.00013998,2]
[328640609,1717659036110,-282.99725191,0.00013998,2]
[328640610,1717659036119,-1384.54285699,0.00013999,2]
[328640611,1717659036128,-155.0,0.00013999,2]
[328640612,1717659036138,-688.05729315,0.00013999,2]
[328640613,1717659036147,-391.0489157,0.00013999,2]
[328640614,1717659036157,-267050.44885783,0.00014,2]
[328640615,1717659036166,-32591.93579576,0.00014,2]
[328640616,1717659036175,-155.17466401,0.00014,2]
[328640617,1717659036184,-172.83,0.00014025,2]
[328640618,1717659036194,-169.35,0.00014157,2]
[328640619,1717659036313,-320.89773,0.0001438,2]
[328640620,1717659036322,-1000.0,0.00014428,2]
[328640621,1717659036331,-2253.33,0.00014714,2]
[328640622,1717659036340,-151.75,0.00014949,2]
[328640623,1717659036350,-1044.48,0.00014987,2]
[328640624,1717659036359,-622.70424784,0.00015,2]
[328640625,1717659036368,-320.89773,0.00015,2]
[328640626,1717659036378,-267.51,0.00015045,2]
[328640627,1717659036387,-1000.0,0.000156,2]
[328640628,1717659036396,-320.89773,0.0001563,2]
[328640629,1717659036405,-1000.0,0.00015739,2]
[328640630,1717659036414,-167.01,0.00015831,2]
[328640631,1717659036423,-1643.47903912,0.00016127,2]
[328640632,1717659036434,-169.35,0.00016179,2]
[328640633,1717659036443,-320.89773,0.0001625,2]
[328640634,1717659036453,-189.1,0.00016438,2]
[328640635,1717659036462,-267.51,0.0001655,2]
[328640636,1717659036471,-151.75,0.0001661,2]
[328640637,1717659036481,-170.7597448,0.00016705,2]
[328640638,1717659036490,-320.89774,0.0001688,2]
[328640639,1717659036500,-166.717,0.000169,2]
[328640640,1717659036510,-1044.48,0.00017243,2]
[328640641,1717659036520,-2253.33,0.00017454,2]
[328640642,1717659036530,-1459.14070593,0.00018,2]
[328640643,1717659036539,-267.51,0.00018055,2]
[328640644,1717659036548,-488.0,0.000181,2]
[328640645,1717659036557,-169.35,0.00018202,2]
[328640646,1717659036567,-151.75,0.00018271,2]
[328640647,1717659036581,-3006.0,0.000184,2]
[328640648,1717659036591,-767.0,0.000184,2]
[328640649,1717659036601,-1643.47903912,0.00018423,2]
[328640650,1717659036610,-155.49683224,0.00019,2]
[328640651,1717659036620,-412.87618326,0.00019,2]
[328640652,1717659036629,-371.3162187,0.00019178,2]
[328640653,1717659036639,-609.32294275,0.00019178,2]
[328640654,1717659036648,-474.10773049,0.00019178,2]
[328640655,1717659036658,-500.0,0.00019178,2]
[328640656,1717659036667,-402.26780086,0.00019178,2]
[328640657,1717659036677,-500.0,0.00019178,2]
[328640658,1717659036687,-406.0447685,0.00019178,2]
[328640659,1717659036696,-784.0,0.00019178,2]
[328640660,1717659036706,-3891.02501567,0.000192,2]
[328640661,1717659036715,-3891.02501567,0.000192,2]
[328640662,1717659036725,-1044.48,0.00019499,2]
[328640663,1717659036734,-197.054,0.00019892,2]
[328640664,1717659036746,-295.0,0.00019892,2]
[328640665,1717659036756,-268.0,0.00019892,2]
[328640666,1717659036769,-160.015,0.00019892,2]
[328640667,1717659036778,-150.377,0.00019892,2]
[328640668,1717659036787,-446.0,0.00019892,2]
[328640669,1717659036796,-833.874,0.00019892,2]
[328640670,1717659036806,-167.563,0.00019892,2]
[328640671,1717659036815,-160.306,0.00019892,2]
[328640672,1717659036825,-2402.0,0.00019892,2]
[328640673,1717659036834,-1303.0,0.00019892,2]
[328640674,1717659036845,-156.132,0.00019892,2]
[328640675,1717659036854,-221.0,0.00019892,2]
[328640676,1717659036863,-3225.215,0.00019892,2]
[328640677,1717659036872,-545.0,0.00019892,2]
[328640678,1717659036882,-2123.0,0.00019892,2]
[328640679,1717659036891,-1088.934,0.00019892,2]
[328640680,1717659036900,-1019.0,0.00019892,2]
[328640681,1717659036910,-290.0,0.00019892,2]
[328640682,1717659036919,-5151.0,0.00019892,2]
[328640683,1717659036928,-5778.0,0.00019892,2]
[328640684,1717659036938,-996.572,0.00019892,2]
[328640685,1717659036947,-15444.56358069,0.000199,2]
[328640686,1717659036959,-151.75,0.00019932,2]
[328640687,1717659036968,-128077.5547783,0.0002,7]
[328640688,1717659036977,-345.0,0.0002,2]
[328640689,1717659036986,-257.88603198,0.0002,2]
[328640690,1717659036996,-155.49037544,0.0002,2]
[328640691,1717659037006,-864.25440509,0.0002,2]
[328640692,1717659037015,-1267.41790401,0.0002,2]
[328640693,1717659037024,-5900.0,0.0002,7]
[328640694,1717659037033,-548.88488712,0.0002,2]
[328640695,1717659037043,-188.39488201,0.0002,2]
[328640696,1717659037052,-6258.42600459,0.0002,2]
[328640697,1717659037061,-182.0,0.0002,2]
[328640698,1717659037070,-151.578611,0.0002,2]
[328640699,1717659037079,-1004.642672,0.0002,2]
[328640700,1717659037088,-151.578611,0.0002,2]
[328640701,1717659037097,-1004.642672,0.0002,2]
[328640702,1717659037106,-151.0,0.0002,2]
[328640703,1717659037115,-151.0,0.0002,2]
[328640704,1717659037125,-531.319097,0.0002,2]
[328640705,1717659037134,-531.319097,0.0002,2]
[328640706,1717659037143,-159.687581,0.0002,2]
[328640707,1717659037152,-151.0,0.0002,2]
[328640708,1717659037161,-154.484378,0.0002,2]
[328640709,1717659037170,-151.0,0.0002,2]
[328640710,1717659037179,-151.628355,0.0002,2]
[328640711,1717659037188,-151.0,0.0002,2]
[328640712,1717659037197,-206.640717,0.0002,2]
[328640713,1717659037206,-206.640717,0.0002,2]
[328640714,1717659037216,-151.0,0.0002,2]
[328640715,1717659037225,-151.0,0.0002,2]
[328640716,1717659037234,-151.0,0.0002,2]
[328640717,1717659037243,-151.0,0.0002,2]
[328640718,1717659037254,-151.0,0.0002,2]
[328640719,1717659037263,-151.0,0.0002,2]
[328640720,1717659037272,-152.887669,0.0002,2]
[328640721,1717659037281,-152.887669,0.0002,2]
[328640722,1717659037290,-151.0,0.0002,2]
[328640723,1717659037300,-357.085294,0.0002,2]
[328640724,1717659037310,-357.085294,0.0002,2]
[328640725,1717659037319,-1508.492904,0.0002,2]
[328640726,1717659037328,-150.0,0.0002,2]
[328640727,1717659037338,-1000.0,0.0002,2]
[328640728,1717659037347,-226.60187199,0.000201,2]
[328640729,1717659037356,-170.7597448,0.00020103,2]
[328640730,1717659037365,-150.0,0.000205,2]
[328640731,1717659037374,-171.31,0.00020548,2]
[328640732,1717659037384,-151.0,0.00020633,3]
[328640733,1717659037393,-1643.47903912,0.00020718,2]
[328640734,1717659037402,-15444.56358067,0.00020809,2]
[328640735,1717659037411,-150.0,0.00021,2]
[328640736,1717659037421,-8097.0,0.000212,5]
[328640737,1717659037430,-150.0,0.000215,3]
[328640738,1717659037440,-151.0,0.00021674,3]
[328640739,1717659037449,-15444.56358067,0.00021718,2]
[328640740,1717659037459,-1044.48,0.00021755,2]
[328640741,1717659037468,-439.99,0.00021918,2]
[328640742,1717659037477,-566.88,0.00021918,2]
[328640743,1717659037486,-250.0,0.00021918,2]
[328640744,1717659037496,-958.71692077,0.00022,2]
[328640745,1717659037506,-792.79890169,0.00022,2]
[328640746,1717659037516,-150.0,0.00022,3]
[328640747,1717659037525,-150.0,0.000225,3]
[328640748,1717659037534,-15444.56358067,0.00022627,2]
[328640749,1717659037543,-151.0,0.00022715,3]
[328640750,1717659037552,-174.83982574,0.00022792,2]
[328640751,1717659037561,-212.27538932,0.00022792,2]
[328640752,1717659037570,-176.0,0.00022892,2]
[328640753,1717659037579,-183.0,0.00022892,2]
[328640754,1717659037590,-545.0,0.00022892,2]
[328640755,1717659037599,-2123.0,0.00022892,2]
[328640756,1717659037609,-1064.0,0.00022892,2]
[328640757,1717659037618,-290.0,0.00022892,2]
[328640758,1717659037627,-5151.0,0.00022892,2]
[328640759,1717659037638,-5778.0,0.00022892,2]
[328640760,1717659037647,-977.0,0.00022892,2]
[328640761,1717659037657,-150.0,0.00023,3]
[328640762,1717659037666,-1643.47903912,0.00023014,2]
[328640763,1717659037675,-472.03,0.00023288,2]
[328640764,1717659037685,-884.91,0.00023288,2]
[328640765,1717659037694,-417.06,0.00023288,2]
[328640766,1717659037704,-872.83,0.00023288,2]
[328640767,1717659037713,-417.06,0.00023288,2]
[328640768,1717659037723,-872.83,0.00023288,2]
[328640769,1717659037732,-417.06,0.00023288,2]
[328640770,1717659037742,-872.83,0.00023288,2]
[328640771,1717659037752,-417.06,0.00023288,2]
[328640772,1717659037766,-872.83,0.00023288,2]
[328640773,1717659037775,-872.83,0.00023288,2]
[328640774,1717659037785,-417.06,0.00023288,2]
[328640775,1717659037794,-417.06,0.00023288,2]
[328640776,1717659037805,-872.83,0.00023288,2]
[328640777,1717659037815,-417.06,0.00023288,2]
[328640778,1717659037825,-872.83,0.00023288,2]
[328640779,1717659037834,-417.06,0.00023288,2]
[328640780,1717659037845,-417.06,0.00023288,2]
[328640781,1717659037855,-872.83,0.00023288,2]
[328640782,1717659037864,-417.06,0.00023288,2]
[328640783,1717659037873,-417.06,0.00023288,2]
[328640784,1717659037882,-417.06,0.00023288,2]
[328640785,1717659037892,-150.0,0.000235,3]
[328640786,1717659037901,-170.7597448,0.00023502,2]
[328640787,1717659037910,-15444.56358067,0.00023536,2]
[328640788,1717659037919,-24673.89518463,0.000236,2]
[328640789,1717659037928,-151.0,0.00023756,5]
[328640790,1717659037939,-1433.31731692,0.00024,3]
[328640791,1717659037948,-295.59993398,0.00024,2]
[328640792,1717659037958,-150.0,0.00024,4]
[328640793,1717659037967,-1044.48,0.00024011,2]
[328640794,1717659037977,-1038.74679979,0.000241,2]
[328640795,1717659037986,-395.80511803,0.0002421,2]
[328640796,1717659037995,-180.0,0.0002423,2]
[328640797,1717659038005,-422.3,0.00024247,2]
[328640799,1717659038015,-150.0,0.00024247,2]
[328640800,1717659038024,-150.0,0.00024247,2]
[328640802,1717659038033,-157.23,0.00024247,2]
[328640804,1717659038043,-150.0,0.00024247,2]
[328640805,1717659038052,-150.0,0.00024247,2]
[328640806,1717659038062,-230.51,0.00024247,2]
[328640807,1717659038071,-353.13,0.00024247,2]
[328640808,1717659038081,-422.3,0.00024247,2]
[328640809,1717659038090,-150.0,0.00024247,2]
[328640810,1717659038099,-150.0,0.00024247,2]
[328640811,1717659038109,-150.0,0.00024247,2]
[328640812,1717659038118,-164.06,0.00024247,2]
[328640813,1717659038127,-150.0,0.00024247,2]
[328640814,1717659038137,-353.13,0.00024247,2]
[328640815,1717659038146,-1083.18,0.00024247,2]
[328640816,1717659038155,-150.0,0.00024247,2]
[328640817,1717659038165,-150.0,0.00024247,2]
[328640818,1717659038174,-164.06,0.00024247,2]
[328640819,1717659038183,-150.0,0.00024247,2]
[328640820,1717659038193,-150.0,0.00024247,2]
[328640821,1717659038202,-422.3,0.00024247,2]
[328640823,1717659038212,-150.0,0.00024247,2]
[328640824,1717659038221,-353.13,0.00024247,2]
[328640825,1717659038230,-150.0,0.00024247,2]
[328640826,1717659038240,-422.3,0.00024247,2]
[328640827,1717659038250,-150.0,0.00024247,2]
[328640829,1717659038260,-153.23,0.00024247,2]
[328640830,1717659038270,-353.13,0.00024247,2]
[328640831,1717659038280,-150.0,0.00024247,2]
[328640832,1717659038290,-165.04,0.00024247,2]
[328640833,1717659038300,-15319.42994273,0.00024382,2]
[328640835,1717659038310,-93777.01559548,0.00024382,4]
[328640837,1717659038320,-151.0,0.00024382,7]
[328640838,1717659038329,-151.0,0.00024382,7]
[328640840,1717659038339,-151.0,0.00024382,7]
[328640841,1717659038349,-151.0,0.00024382,7]
[328640842,1717659038359,-151.0,0.00024382,7]
[328640843,1717659038370,-151.0,0.00024382,7]
[328640844,1717659038379,-152.887669,0.00024382,7]
[328640845,1717659038390,-152.887669,0.00024382,7]
[328640846,1717659038399,-151.0,0.00024382,7]
[328640847,1717659038409,-357.085294,0.00024382,7]
[328640848,1717659038418,-357.085294,0.00024382,7]
[328640849,1717659038428,-266.81,0.00024384,2]
[328640850,1717659038438,-176.01,0.00024384,2]
[328640851,1717659038448,-305.93,0.00024384,2]
[328640852,1717659038457,-158.86,0.00024384,2]
[328640853,1717659038467,-15444.56358067,0.00024445,2]
[328640854,1717659038477,-150.0,0.000245,4]
[328640855,1717659038486,-151.0,0.00024503,7]
[328640856,1717659038496,-280.162191,0.00024503,7]
[328640857,1717659038505,-280.162191,0.00024503,7]
[328640858,1717659038515,-369.980668,0.00024503,7]
[328640859,1717659038524,-604.53638839,0.00024503,2]
[328640860,1717659038534,-279.778116,0.00024658,7]
[328640861,1717659038544,-279.778116,0.00024658,7]
[328640862,1717659038554,-151.0,0.00024796,5]
[328640863,1717659038564,-151.0,0.00024798,7]
[328640864,1717659038574,-151.0,0.00024798,7]
[328640865,1717659038584,-207.79448,0.00024798,7]
[328640866,1717659038593,-499.3199,0.00024798,7]
[328640867,1717659038602,-207.79448,0.00024798,7]
[328640868,1717659038720,-499.3199,0.00024798,7]
[328640869,1717659038730,-151.0,0.00024798,7]
[328640870,1717659038741,-151.0,0.00024798,7]
[328640871,1717659038753,-151.0,0.00024798,7]
[328640872,1717659038766,-151.0,0.00024798,7]
[328640873,1717659038775,-151.0,0.00024798,7]
[328640874,1717659038785,-151.0,0.00024798,7]
[328640875,1717659038794,-151.0,0.00024798,7]
[328640876,1717659038805,-187.553479,0.00024798,7]
[328640877,1717659038815,-151.0,0.00024798,7]
[328640878,1717659038824,-823.497835,0.00024798,7]
[328640879,1717659038835,-151.0,0.00024798,7]
[328640880,1717659038847,-151.0,0.00024798,7]
[328640881,1717659038856,-758.230552,0.00024798,7]
[328640882,1717659038866,-758.230552,0.00024798,7]
[328640883,1717659038876,-151.0,0.00024798,7]
[328640884,1717659038886,-151.0,0.00024798,7]
[328640885,1717659038895,-1652.913549,0.00024798,7]
[328640886,1717659038905,-1652.913549,0.00024798,7]
[328640887,1717659038915,-151.0,0.00024798,7]
[328640888,1717659038926,-151.578611,0.00024798,7]
[328640889,1717659038936,-1004.642672,0.00024798,7]
[328640890,1717659038945,-151.578611,0.00024798,7]
[328640891,1717659038955,-1004.642672,0.00024798,7]
[328640892,1717659038964,-151.0,0.00024798,7]
[328640893,1717659038974,-151.0,0.00024798,7]
[328640894,1717659038984,-151.0,0.00024798,7]
[328640895,1717659038993,-279.778116,0.00024798,7]
[328640896,1717659039004,-531.319097,0.00024798,7]
[328640897,1717659039014,-279.778116,0.00024798,7]
[328640898,1717659039023,-531.319097,0.00024798,7]
[328640899,1717659039033,-151.0,0.00024798,7]